[Event "Titled Tuesday Blitz February 15 Early 2022"]
[White "Gatterer, Florian"]
[Black "Pires, Marcos Vinicius Torsani"]
[WhiteFideId "811688"]
[BlackFideId "2118939"]
[WhiteElo "2218"]
[BlackElo "2273"]
[Result "1/2-1/2"]
[Round "08"]
[TimeControl "180+1"]
[Date "2022.02.15"]
[WhiteClock "0:00:02"]
[BlackClock "0:00:08"]

1. Nf3 {[%clk 0:03:00]}  c6 {[%clk 0:03:00]} 2. c4 {[%clk 0:02:59]}  d5 {[%clk 0:03:01]} 3. e3 {[%clk 0:03:00]}  Nf6 {[%clk 0:03:01]} 4. Nc3 {[%clk 0:03:00]}  a6 {[%clk 0:02:54]} 5. Qc2 {[%clk 0:02:57]}  g6 {[%clk 0:02:54]} 6. d3 {[%clk 0:02:49]}  dxc4 {[%clk 0:02:53]} 7. dxc4 {[%clk 0:02:48]}  Bf5 {[%clk 0:02:53]} 8. e4 {[%clk 0:02:48]}  Bg4 {[%clk 0:02:53]} 9. Ne5 {[%clk 0:02:46]}  Be6 {[%clk 0:02:50]} 10. Be2 {[%clk 0:02:44]}  Bg7 {[%clk 0:02:49]} 11. O-O {[%clk 0:02:42]}  O-O {[%clk 0:02:49]} 12. h3 {[%clk 0:02:40]}  Nbd7 {[%clk 0:02:44]} 13. Nf3 {[%clk 0:02:40]}  h6 {[%clk 0:02:34]} 14. Bf4 {[%clk 0:02:35]}  a5 {[%clk 0:02:29]} 15. Rfd1 {[%clk 0:02:30]}  Qb6 {[%clk 0:02:28]} 16. Na4 {[%clk 0:02:29]}  Qa7 {[%clk 0:02:20]} 17. Be3 {[%clk 0:02:25]}  Qb8 {[%clk 0:02:18]} 18. Nd4 {[%clk 0:02:24]}  Qe5 {[%clk 0:02:01]} 19. Nc3 {[%clk 0:02:22]}  Nc5 {[%clk 0:01:39]} 20. f4 {[%clk 0:02:19]}  Qc7 {[%clk 0:01:38]} 21. e5 {[%clk 0:01:55]}  Nfd7 {[%clk 0:01:29]} 22. Nxe6 {[%clk 0:01:54]}  Nxe6 {[%clk 0:01:28]} 23. Bg4 {[%clk 0:01:44]}  Ndc5 {[%clk 0:01:17]} 24. Ne4 {[%clk 0:01:41]}  Nxe4 {[%clk 0:01:14]} 25. Qxe4 {[%clk 0:01:37]}  Rad8 {[%clk 0:01:00]} 26. Bxe6 {[%clk 0:01:34]}  fxe6 {[%clk 0:01:01]} 27. Qxg6 {[%clk 0:01:34]}  Kh8 {[%clk 0:00:58]} 28. Qxe6 {[%clk 0:01:28]}  Rxd1+ {[%clk 0:00:57]} 29. Rxd1 {[%clk 0:01:27]}  Rd8 {[%clk 0:00:58]} 30. Qg4 {[%clk 0:01:16]}  Rxd1+ {[%clk 0:00:54]} 31. Qxd1 {[%clk 0:01:15]}  a4 {[%clk 0:00:54]} 32. Qd2 {[%clk 0:01:11]}  b5 {[%clk 0:00:50]} 33. Qb4 {[%clk 0:01:03]}  Qd7 {[%clk 0:00:46]} 34. cxb5 {[%clk 0:00:59]}  cxb5 {[%clk 0:00:47]} 35. Qc3 {[%clk 0:00:57]}  Qd1+ {[%clk 0:00:45]} 36. Kh2 {[%clk 0:00:55]}  Qd5 {[%clk 0:00:46]} 37. b3 {[%clk 0:00:52]}  Qe4 {[%clk 0:00:44]} 38. bxa4 {[%clk 0:00:50]}  Qxa4 {[%clk 0:00:42]} 39. Qd3 {[%clk 0:00:39]}  Qxa2 {[%clk 0:00:38]} 40. Qxb5 {[%clk 0:00:35]}  Qa3 {[%clk 0:00:37]} 41. Qc5 {[%clk 0:00:33]}  Qd3 {[%clk 0:00:34]} 42. Qd4 {[%clk 0:00:31]}  Qf5 {[%clk 0:00:32]} 43. g4 {[%clk 0:00:28]}  Qc2+ {[%clk 0:00:32]} 44. Kg3 {[%clk 0:00:28]}  Qb3 {[%clk 0:00:28]} 45. h4 {[%clk 0:00:27]}  Qf7 {[%clk 0:00:27]} 46. h5 {[%clk 0:00:26]}  Qb3 {[%clk 0:00:22]} 47. Kf3 {[%clk 0:00:24]}  Qb7+ {[%clk 0:00:22]} 48. Qe4 {[%clk 0:00:24]}  Qb5 {[%clk 0:00:21]} 49. Qa8+ {[%clk 0:00:21]}  Kh7 {[%clk 0:00:22]} 50. Qe4+ {[%clk 0:00:21]}  Kh8 {[%clk 0:00:22]} 51. g5 {[%clk 0:00:20]}  Qf1+ {[%clk 0:00:21]} 52. Bf2 {[%clk 0:00:19]}  Qh3+ {[%clk 0:00:19]} 53. Bg3 {[%clk 0:00:16]}  Qxh5+ {[%clk 0:00:19]} 54. Ke3 {[%clk 0:00:16]}  hxg5 {[%clk 0:00:20]} 55. fxg5 {[%clk 0:00:15]}  Qxg5+ {[%clk 0:00:21]} 56. Bf4 {[%clk 0:00:16]}  Qg1+ {[%clk 0:00:21]} 57. Kd3 {[%clk 0:00:15]}  Qc1 {[%clk 0:00:21]} 58. Ke2 {[%clk 0:00:11]}  Qb2+ {[%clk 0:00:18]} 59. Kf3 {[%clk 0:00:11]}  Qb3+ {[%clk 0:00:16]} 60. Kg4 {[%clk 0:00:10]}  Qe6+ {[%clk 0:00:15]} 61. Kg3 {[%clk 0:00:10]}  Qb3+ {[%clk 0:00:14]} 62. Kg4 {[%clk 0:00:10]}  Qd1+ {[%clk 0:00:14]} 63. Kg3 {[%clk 0:00:10]}  Qg1+ {[%clk 0:00:13]} 64. Kf3 {[%clk 0:00:10]}  Qh1+ {[%clk 0:00:13]} 65. Ke3 {[%clk 0:00:10]}  Qe1+ {[%clk 0:00:11]} 66. Kf3 {[%clk 0:00:10]}  Qd1+ {[%clk 0:00:11]} 67. Ke3 {[%clk 0:00:10]}  e6 {[%clk 0:00:09]} 68. Qg6 {[%clk 0:00:09]}  Qe1+ {[%clk 0:00:08]} 69. Kf3 {[%clk 0:00:09]}  Qf1+ {[%clk 0:00:05]} 70. Ke3 {[%clk 0:00:09]}  Qc1+ {[%clk 0:00:05]} 71. Kf3 {[%clk 0:00:08]}  Qd1+ {[%clk 0:00:05]} 72. Ke3 {[%clk 0:00:08]}  Qb3+ {[%clk 0:00:06]} 73. Kf2 {[%clk 0:00:07]}  Qb2+ {[%clk 0:00:05]} 74. Kf3 {[%clk 0:00:07]}  Qc3+ {[%clk 0:00:04]} 75. Kf2 {[%clk 0:00:06]}  Qb2+ {[%clk 0:00:05]} 76. Kf3 {[%clk 0:00:06]}  Qa3+ {[%clk 0:00:05]} 77. Kf2 {[%clk 0:00:06]}  Qe7 {[%clk 0:00:06]} 78. Qh5+ {[%clk 0:00:04]}  Kg8 {[%clk 0:00:06]} 79. Qg6 {[%clk 0:00:04]}  Qa7+ {[%clk 0:00:05]} 80. Kf3 {[%clk 0:00:04]}  Qe7 {[%clk 0:00:06]} 81. Kg4 {[%clk 0:00:04]}  Qf8 {[%clk 0:00:06]} 82. Qg5 {[%clk 0:00:03]}  Qf7 {[%clk 0:00:05]} 83. Qh5 {[%clk 0:00:03]}  Qf8 {[%clk 0:00:05]} 84. Qg5 {[%clk 0:00:03]}  Qb4 {[%clk 0:00:06]} 85. Qg6 {[%clk 0:00:02]}  Qc4 {[%clk 0:00:06]} 86. Qe8+ {[%clk 0:00:01]}  Kh7 {[%clk 0:00:06]} 87. Qh5+ {[%clk 0:00:02]}  Kg8 {[%clk 0:00:06]} 88. Qe8+ {[%clk 0:00:02]}  Bf8 {[%clk 0:00:07]} 89. Qg6+ {[%clk 0:00:02]}  Kh8 {[%clk 0:00:07]} 90. Qh5+ {[%clk 0:00:02]}  Kg8 {[%clk 0:00:07]} 91. Qg6+ {[%clk 0:00:02]}  Bg7 {[%clk 0:00:08]} 92. Qe8+ {[%clk 0:00:02]} 1/2-1/2


[Site "https://www.chess.com"]

[Event "Titled Tuesday Blitz February 15 Early 2022"]
[White "Goldin, Roman"]
[Black "Vusatiuk, Vladimir"]
[WhiteFideId "2803860"]
[BlackFideId "14118610"]
[WhiteElo "2312"]
[BlackElo "2157"]
[Result "1-0"]
[Round "08"]
[TimeControl "180+1"]
[Date "2022.02.15"]
[WhiteClock "0:00:07"]
[BlackClock "0:00:07"]

1. Nf3 {[%clk 0:03:00]}  Nc6 {[%clk 0:02:58]} 2. e4 {[%clk 0:02:57]}  d5 {[%clk 0:02:58]} 3. exd5 {[%clk 0:02:56]}  Qxd5 {[%clk 0:02:59]} 4. Nc3 {[%clk 0:02:56]}  Qa5 {[%clk 0:02:59]} 5. g3 {[%clk 0:02:56]}  Nf6 {[%clk 0:02:56]} 6. Bg2 {[%clk 0:02:57]}  e5 {[%clk 0:02:53]} 7. O-O {[%clk 0:02:56]}  Bd6 {[%clk 0:02:54]} 8. Re1 {[%clk 0:02:56]}  O-O {[%clk 0:02:54]} 9. d3 {[%clk 0:02:53]}  h6 {[%clk 0:02:46]} 10. a3 {[%clk 0:02:53]}  Qb6 {[%clk 0:02:21]} 11. b4 {[%clk 0:02:47]}  Bg4 {[%clk 0:02:04]} 12. h3 {[%clk 0:02:42]}  Bh5 {[%clk 0:02:03]} 13. g4 {[%clk 0:02:41]}  Bg6 {[%clk 0:02:04]} 14. Be3 {[%clk 0:02:40]}  Nd4 {[%clk 0:02:04]} 15. Na4 {[%clk 0:02:27]}  Qa6 {[%clk 0:01:27]} 16. c4 {[%clk 0:02:25]}  Nxf3+ {[%clk 0:01:11]} 17. Bxf3 {[%clk 0:02:23]}  c6 {[%clk 0:01:00]} 18. Bc5 {[%clk 0:01:41]}  Rad8 {[%clk 0:00:58]} 19. Bxd6 {[%clk 0:01:40]}  Rxd6 {[%clk 0:00:58]} 20. Nc5 {[%clk 0:01:39]}  Qb6 {[%clk 0:00:58]} 21. Rxe5 {[%clk 0:01:39]}  Nd7 {[%clk 0:00:28]} 22. Nxd7 {[%clk 0:01:26]}  Rxd7 {[%clk 0:00:28]} 23. c5 {[%clk 0:01:26]}  Qd8 {[%clk 0:00:26]} 24. Qd2 {[%clk 0:01:04]}  Rxd3 {[%clk 0:00:25]} 25. Qf4 {[%clk 0:01:05]}  Qc7 {[%clk 0:00:13]} 26. Rf5 {[%clk 0:00:34]}  Qxf4 {[%clk 0:00:05]} 27. Rxf4 {[%clk 0:00:34]}  Rfd8 {[%clk 0:00:04]} 28. b5 {[%clk 0:00:33]}  Rxf3 {[%clk 0:00:01]} 29. Rxf3 {[%clk 0:00:33]}  cxb5 {[%clk 0:00:02]} 30. Re1 {[%clk 0:00:25]}  a6 {[%clk 0:00:02]} 31. Re7 {[%clk 0:00:23]}  Rc8 {[%clk 0:00:02]} 32. Rc3 {[%clk 0:00:23]}  Rb8 {[%clk 0:00:02]} 33. f3 {[%clk 0:00:20]}  Kf8 {[%clk 0:00:02]} 34. Rc7 {[%clk 0:00:19]}  Bb1 {[%clk 0:00:01]} 35. Kf2 {[%clk 0:00:18]}  Ba2 {[%clk 0:00:02]} 36. Ke3 {[%clk 0:00:18]}  Bd5 {[%clk 0:00:02]} 37. Kf4 {[%clk 0:00:18]}  Bc6 {[%clk 0:00:03]} 38. Re3 {[%clk 0:00:18]}  Kg8 {[%clk 0:00:02]} 39. Ree7 {[%clk 0:00:18]}  Bd5 {[%clk 0:00:02]} 40. Red7 {[%clk 0:00:18]}  Be6 {[%clk 0:00:01]} 41. Rxb7 {[%clk 0:00:17]}  Rc8 {[%clk 0:00:02]} 42. Rdc7 {[%clk 0:00:17]}  Rd8 {[%clk 0:00:02]} 43. c6 {[%clk 0:00:16]}  Bd5 {[%clk 0:00:02]} 44. Rd7 {[%clk 0:00:15]}  Rc8 {[%clk 0:00:03]} 45. Rxd5 {[%clk 0:00:13]}  Rxc6 {[%clk 0:00:03]} 46. Rdd7 {[%clk 0:00:13]}  Kh7 {[%clk 0:00:04]} 47. Rxf7 {[%clk 0:00:12]}  Rc4+ {[%clk 0:00:05]} 48. Kg3 {[%clk 0:00:12]}  Kg6 {[%clk 0:00:06]} 49. Rxg7+ {[%clk 0:00:12]}  Kf6 {[%clk 0:00:06]} 50. Rgd7 {[%clk 0:00:11]}  Ke5 {[%clk 0:00:07]} 51. Rh7 {[%clk 0:00:10]}  Rc3 {[%clk 0:00:07]} 52. Rxh6 {[%clk 0:00:11]}  Rxa3 {[%clk 0:00:08]} 53. Rhb6 {[%clk 0:00:10]}  Kd5 {[%clk 0:00:07]} 54. Ra7 {[%clk 0:00:11]}  a5 {[%clk 0:00:06]} 55. Raa6 {[%clk 0:00:11]}  Kc5 {[%clk 0:00:06]} 56. Rc6+ {[%clk 0:00:11]}  Kd5 {[%clk 0:00:06]} 57. g5 {[%clk 0:00:11]}  Ra1 {[%clk 0:00:05]} 58. g6 {[%clk 0:00:11]}  a4 {[%clk 0:00:06]} 59. Kf4 {[%clk 0:00:11]}  a3 {[%clk 0:00:04]} 60. g7 {[%clk 0:00:11]}  Rg1 {[%clk 0:00:05]} 61. Rg6 {[%clk 0:00:11]}  a2 {[%clk 0:00:04]} 62. g8=Q+ {[%clk 0:00:10]}  Kc5 {[%clk 0:00:04]} 63. Rac6+ {[%clk 0:00:09]}  Kb4 {[%clk 0:00:04]} 64. Rxg1 {[%clk 0:00:07]}  Ka3 {[%clk 0:00:05]} 65. Qd5 {[%clk 0:00:06]}  Kb4 {[%clk 0:00:05]} 66. Qc5+ {[%clk 0:00:06]}  Ka5 {[%clk 0:00:06]} 67. Rb6 {[%clk 0:00:06]}  Ka4 {[%clk 0:00:06]} 68. Qxb5+ {[%clk 0:00:07]}  Ka3 {[%clk 0:00:07]} 69. Qb4# {[%clk 0:00:07]} 1-0


[Site "https://www.chess.com"]

[Event "Titled Tuesday Blitz February 15 Early 2022"]
[White "Golubka, Petro"]
[Black "Varney, Zoe"]
[WhiteFideId "14114224"]
[BlackFideId "436135"]
[WhiteElo "2392"]
[BlackElo "1808"]
[Result "0-1"]
[Round "08"]
[TimeControl "180+1"]
[Date "2022.02.15"]
[WhiteClock "0:01:59"]
[BlackClock "0:00:02"]

1. d3 {[%clk 0:02:58]}  Nf6 {[%clk 0:02:56]} 2. e4 {[%clk 0:02:54]}  e5 {[%clk 0:02:56]} 3. f4 {[%clk 0:02:54]}  Bc5 {[%clk 0:02:25]} 4. fxe5 {[%clk 0:02:51]}  Nxe4 {[%clk 0:02:23]} 5. dxe4 {[%clk 0:02:44]}  Qh4+ {[%clk 0:02:22]} 6. Kd2 {[%clk 0:02:44]}  Qxe4 {[%clk 0:01:39]} 7. Qf3 {[%clk 0:02:43]}  Qd4+ {[%clk 0:01:13]} 8. Bd3 {[%clk 0:02:37]}  Nc6 {[%clk 0:00:49]} 9. c3 {[%clk 0:02:32]}  Qh4 {[%clk 0:00:40]} 10. g3 {[%clk 0:02:31]}  Qe7 {[%clk 0:00:25]} 11. Kc2 {[%clk 0:02:31]}  Nxe5 {[%clk 0:00:18]} 12. Qe2 {[%clk 0:02:31]}  d6 {[%clk 0:00:18]} 13. Bf4 {[%clk 0:02:28]}  Bg4 {[%clk 0:00:17]} 14. Qe1 {[%clk 0:02:25]}  Nxd3 {[%clk 0:00:17]} 15. Qxe7+ {[%clk 0:02:23]}  Kxe7 {[%clk 0:00:18]} 16. Kxd3 {[%clk 0:02:23]}  Bf5+ {[%clk 0:00:18]} 17. Kd2 {[%clk 0:02:23]}  Be4 {[%clk 0:00:18]} 18. b4 {[%clk 0:02:20]}  Bb6 {[%clk 0:00:17]} 19. Ne2 {[%clk 0:02:19]}  Bxh1 {[%clk 0:00:17]} 20. Na3 {[%clk 0:02:19]}  Bf3 {[%clk 0:00:16]} 21. Nd4 {[%clk 0:02:19]}  Bxd4 {[%clk 0:00:16]} 22. cxd4 {[%clk 0:02:20]}  Rhe8 {[%clk 0:00:16]} 23. Ke3 {[%clk 0:02:20]}  Bc6 {[%clk 0:00:15]} 24. b5 {[%clk 0:02:19]}  Bd5 {[%clk 0:00:16]} 25. Kd2 {[%clk 0:02:19]}  Kf8 {[%clk 0:00:16]} 26. Rc1 {[%clk 0:02:20]}  a6 {[%clk 0:00:16]} 27. Rxc7 {[%clk 0:02:19]}  axb5 {[%clk 0:00:16]} 28. Bxd6+ {[%clk 0:02:17]}  Kg8 {[%clk 0:00:15]} 29. Rc3 {[%clk 0:02:16]}  Bc4 {[%clk 0:00:12]} 30. Rf3 {[%clk 0:02:14]}  f6 {[%clk 0:00:10]} 31. h4 {[%clk 0:02:14]}  Red8 {[%clk 0:00:09]} 32. Bc5 {[%clk 0:02:13]}  Ra6 {[%clk 0:00:09]} 33. Kc3 {[%clk 0:02:12]}  b6 {[%clk 0:00:08]} 34. Bb4 {[%clk 0:02:12]}  Bd5 {[%clk 0:00:08]} 35. Re3 {[%clk 0:02:09]}  Bxa2 {[%clk 0:00:07]} 36. Nxb5 {[%clk 0:02:09]}  Bf7 {[%clk 0:00:06]} 37. Re7 {[%clk 0:02:08]}  Rc8+ {[%clk 0:00:06]} 38. Kd2 {[%clk 0:02:07]}  Ra2+ {[%clk 0:00:06]} 39. Ke3 {[%clk 0:02:07]}  Rb2 {[%clk 0:00:05]} 40. Nd6 {[%clk 0:02:06]}  Rb3+ {[%clk 0:00:05]} 41. Kf4 {[%clk 0:02:06]}  Rf8 {[%clk 0:00:04]} 42. Bd2 {[%clk 0:02:05]}  Bd5 {[%clk 0:00:02]} 43. Be3 {[%clk 0:02:04]}  Rd3 {[%clk 0:00:01]} 44. Nf5 {[%clk 0:02:03]}  Rd1 {[%clk 0:00:01]} 45. Rxg7+ {[%clk 0:02:03]}  Kh8 {[%clk 0:00:01]} 46. g4 {[%clk 0:01:57]}  Rf1+ {[%clk 0:00:01]} 47. Kg3 {[%clk 0:01:57]}  Rxf5 {[%clk 0:00:02]} 48. Rd7 {[%clk 0:01:57]}  Rf3+ {[%clk 0:00:01]} 49. Kh2 {[%clk 0:01:57]}  Rxe3 {[%clk 0:00:02]} 50. Rxd5 {[%clk 0:01:58]}  Re2+ {[%clk 0:00:02]} 51. Kg3 {[%clk 0:01:58]}  Re3+ {[%clk 0:00:02]} 52. Kf4 {[%clk 0:01:59]}  Rb3 {[%clk 0:00:02]} 53. Rd7 {[%clk 0:01:59]}  b5 {[%clk 0:00:02]} 54. h5 {[%clk 0:01:59]}  b4 {[%clk 0:00:02]} 55. Kf5 {[%clk 0:01:59]}  Rb1 {[%clk 0:00:02]} 56. h6 {[%clk 0:02:00]}  b3 {[%clk 0:00:03]} 57. Rf7 {[%clk 0:01:59]}  Rxf7 {[%clk 0:00:02]} 0-1


[Site "https://www.chess.com"]

[Event "Titled Tuesday Blitz February 15 Early 2022"]
[White "Grischuk, Alexander"]
[Black "Lodici, Lorenzo"]
[WhiteFideId "4126025"]
[BlackFideId "884189"]
[WhiteElo "2762"]
[BlackElo "2265"]
[Result "1/2-1/2"]
[Round "08"]
[TimeControl "180+1"]
[Date "2022.02.15"]
[WhiteClock "0:00:13"]
[BlackClock "0:00:12"]

1. e4 {[%clk 0:03:00]}  e5 {[%clk 0:02:59]} 2. Nf3 {[%clk 0:03:00]}  Nc6 {[%clk 0:03:00]} 3. Bc4 {[%clk 0:03:00]}  Nf6 {[%clk 0:02:59]} 4. d3 {[%clk 0:03:00]}  Bc5 {[%clk 0:02:59]} 5. c3 {[%clk 0:02:56]}  a6 {[%clk 0:02:56]} 6. a4 {[%clk 0:02:53]}  d6 {[%clk 0:02:55]} 7. O-O {[%clk 0:02:52]}  Ba7 {[%clk 0:02:55]} 8. Re1 {[%clk 0:02:51]}  h6 {[%clk 0:02:54]} 9. Nbd2 {[%clk 0:02:51]}  Ne7 {[%clk 0:02:50]} 10. Nf1 {[%clk 0:02:42]}  Ng6 {[%clk 0:02:49]} 11. Ng3 {[%clk 0:02:42]}  c6 {[%clk 0:02:44]} 12. h3 {[%clk 0:02:34]}  O-O {[%clk 0:02:29]} 13. Bb3 {[%clk 0:02:34]}  Nf4 {[%clk 0:02:18]} 14. d4 {[%clk 0:02:32]}  Qc7 {[%clk 0:02:06]} 15. Bxf4 {[%clk 0:02:17]}  exf4 {[%clk 0:02:06]} 16. Nf1 {[%clk 0:02:18]}  Re8 {[%clk 0:01:59]} 17. Qd3 {[%clk 0:02:18]}  Be6 {[%clk 0:01:48]} 18. Bxe6 {[%clk 0:02:11]}  Rxe6 {[%clk 0:01:28]} 19. N1d2 {[%clk 0:02:10]}  Rae8 {[%clk 0:01:28]} 20. b4 {[%clk 0:01:51]}  Qe7 {[%clk 0:01:27]} 21. e5 {[%clk 0:01:49]}  dxe5 {[%clk 0:01:20]} 22. Rxe5 {[%clk 0:01:47]}  Rxe5 {[%clk 0:01:18]} 23. Nxe5 {[%clk 0:01:47]}  Bb8 {[%clk 0:01:14]} 24. Nef3 {[%clk 0:01:43]}  Nd5 {[%clk 0:01:13]} 25. a5 {[%clk 0:01:33]}  Bd6 {[%clk 0:00:55]} 26. Re1 {[%clk 0:01:13]}  Qd7 {[%clk 0:00:55]} 27. Ne4 {[%clk 0:01:00]}  Bf8 {[%clk 0:00:43]} 28. Kf1 {[%clk 0:00:58]}  Re6 {[%clk 0:00:33]} 29. Ned2 {[%clk 0:00:48]}  Rxe1+ {[%clk 0:00:32]} 30. Nxe1 {[%clk 0:00:43]}  Qe6 {[%clk 0:00:32]} 31. Nef3 {[%clk 0:00:40]}  Bd6 {[%clk 0:00:21]} 32. Ng1 {[%clk 0:00:36]}  g6 {[%clk 0:00:20]} 33. Ne2 {[%clk 0:00:36]}  Kg7 {[%clk 0:00:21]} 34. Qe4 {[%clk 0:00:35]}  Kf6 {[%clk 0:00:20]} 35. Qf3 {[%clk 0:00:23]}  Kg7 {[%clk 0:00:20]} 36. Ne4 {[%clk 0:00:22]}  g5 {[%clk 0:00:10]} 37. Qd3 {[%clk 0:00:21]}  Be7 {[%clk 0:00:10]} 38. Nd2 {[%clk 0:00:20]}  f5 {[%clk 0:00:10]} 39. Nf3 {[%clk 0:00:18]}  Qe4 {[%clk 0:00:10]} 40. Ne1 {[%clk 0:00:17]}  Qe6 {[%clk 0:00:09]} 41. Qd2 {[%clk 0:00:13]}  Bd6 {[%clk 0:00:09]} 42. Nd3 {[%clk 0:00:12]}  Qe4 {[%clk 0:00:09]} 43. f3 {[%clk 0:00:12]}  Ne3+ {[%clk 0:00:07]} 44. Kg1 {[%clk 0:00:11]}  Qe6 {[%clk 0:00:08]} 45. Nc5 {[%clk 0:00:11]}  Bxc5 {[%clk 0:00:04]} 46. dxc5 {[%clk 0:00:12]}  Qd5 {[%clk 0:00:04]} 47. Qxd5 {[%clk 0:00:11]}  Nxd5 {[%clk 0:00:05]} 48. Kf2 {[%clk 0:00:12]}  Kf6 {[%clk 0:00:05]} 49. Ke1 {[%clk 0:00:09]}  Ke5 {[%clk 0:00:05]} 50. Kd2 {[%clk 0:00:07]}  Ne3 {[%clk 0:00:05]} 51. g4 {[%clk 0:00:07]}  fxg4 {[%clk 0:00:03]} 52. hxg4 {[%clk 0:00:07]}  Nd5 {[%clk 0:00:02]} 53. Kd3 {[%clk 0:00:07]}  Nf6 {[%clk 0:00:02]} 54. Nd4 {[%clk 0:00:07]}  h5 {[%clk 0:00:02]} 55. gxh5 {[%clk 0:00:07]}  Nxh5 {[%clk 0:00:03]} 56. c4 {[%clk 0:00:07]}  Nf6 {[%clk 0:00:03]} 57. b5 {[%clk 0:00:07]}  Nd7 {[%clk 0:00:02]} 58. bxc6 {[%clk 0:00:03]}  Nxc5+ {[%clk 0:00:03]} 59. Kc3 {[%clk 0:00:04]}  bxc6 {[%clk 0:00:03]} 60. Nxc6+ {[%clk 0:00:04]}  Kd6 {[%clk 0:00:04]} 61. Nb4 {[%clk 0:00:04]}  Ke5 {[%clk 0:00:03]} 62. Nc6+ {[%clk 0:00:04]}  Kd6 {[%clk 0:00:04]} 63. Nb4 {[%clk 0:00:04]}  Ke5 {[%clk 0:00:03]} 64. Nd3+ {[%clk 0:00:04]}  Nxd3 {[%clk 0:00:04]} 65. Kxd3 {[%clk 0:00:05]}  Kf5 {[%clk 0:00:02]} 66. c5 {[%clk 0:00:04]}  Ke5 {[%clk 0:00:02]} 67. Kc4 {[%clk 0:00:03]}  Ke6 {[%clk 0:00:03]} 68. Kd4 {[%clk 0:00:03]}  Kd7 {[%clk 0:00:03]} 69. Ke5 {[%clk 0:00:03]}  g4 {[%clk 0:00:01]} 70. Kxf4 {[%clk 0:00:03]}  gxf3 {[%clk 0:00:02]} 71. Kxf3 {[%clk 0:00:04]}  Kc6 {[%clk 0:00:03]} 72. Ke4 {[%clk 0:00:05]}  Kxc5 {[%clk 0:00:03]} 73. Kd3 {[%clk 0:00:06]}  Kb5 {[%clk 0:00:04]} 74. Kc2 {[%clk 0:00:07]}  Kxa5 {[%clk 0:00:05]} 75. Kb2 {[%clk 0:00:08]}  Kb4 {[%clk 0:00:06]} 76. Ka1 {[%clk 0:00:08]}  Ka4 {[%clk 0:00:07]} 77. Kb1 {[%clk 0:00:09]}  Ka3 {[%clk 0:00:08]} 78. Ka1 {[%clk 0:00:10]}  a5 {[%clk 0:00:09]} 79. Kb1 {[%clk 0:00:10]}  a4 {[%clk 0:00:09]} 80. Ka1 {[%clk 0:00:11]}  Kb3 {[%clk 0:00:10]} 81. Kb1 {[%clk 0:00:12]}  a3 {[%clk 0:00:11]} 82. Ka1 {[%clk 0:00:13]}  a2 {[%clk 0:00:12]} 1/2-1/2


[Site "https://www.chess.com"]

[Event "Titled Tuesday Blitz February 15 Early 2022"]
[White "Gubanov, Oleg"]
[Black "Jain Kashish Manoj"]
[WhiteFideId "14115115"]
[BlackFideId "35081098"]
[WhiteElo "2080"]
[BlackElo "1681"]
[Result "0-1"]
[Round "08"]
[TimeControl "180+1"]
[Date "2022.02.15"]
[WhiteClock "0:00:04"]
[BlackClock "0:00:02"]

1. e4 {[%clk 0:03:00]}  c5 {[%clk 0:02:54]} 2. Nf3 {[%clk 0:03:00]}  d6 {[%clk 0:02:55]} 3. c3 {[%clk 0:03:00]}  Nf6 {[%clk 0:02:50]} 4. Bc4 {[%clk 0:03:00]}  e6 {[%clk 0:02:23]} 5. Qe2 {[%clk 0:02:59]}  Be7 {[%clk 0:02:16]} 6. O-O {[%clk 0:02:59]}  O-O {[%clk 0:02:16]} 7. Bb3 {[%clk 0:02:59]}  b6 {[%clk 0:02:02]} 8. d4 {[%clk 0:02:58]}  Ba6 {[%clk 0:01:49]} 9. c4 {[%clk 0:02:53]}  d5 {[%clk 0:01:26]} 10. e5 {[%clk 0:02:45]}  Nfd7 {[%clk 0:01:21]} 11. Rd1 {[%clk 0:02:32]}  Nc6 {[%clk 0:01:16]} 12. Be3 {[%clk 0:02:20]}  cxd4 {[%clk 0:01:10]} 13. Bxd4 {[%clk 0:02:19]}  Qc7 {[%clk 0:00:57]} 14. Nc3 {[%clk 0:02:13]}  Rac8 {[%clk 0:00:33]} 15. Nb5 {[%clk 0:02:08]}  Bxb5 {[%clk 0:00:33]} 16. cxb5 {[%clk 0:02:08]}  Nxd4 {[%clk 0:00:34]} 17. Nxd4 {[%clk 0:02:09]}  Qxe5 {[%clk 0:00:32]} 18. Qd2 {[%clk 0:01:45]}  Bg5 {[%clk 0:00:24]} 19. Qb4 {[%clk 0:01:25]}  Nc5 {[%clk 0:00:17]} 20. Bc2 {[%clk 0:00:56]}  Ne4 {[%clk 0:00:09]} 21. Nc6 {[%clk 0:00:48]}  Qf4 {[%clk 0:00:06]} 22. Bxe4 {[%clk 0:00:45]}  dxe4 {[%clk 0:00:07]} 23. Re1 {[%clk 0:00:30]}  Qf5 {[%clk 0:00:04]} 24. Rxe4 {[%clk 0:00:26]}  a5 {[%clk 0:00:05]} 25. Qe1 {[%clk 0:00:18]}  Qxb5 {[%clk 0:00:03]} 26. Nd4 {[%clk 0:00:14]}  Qxb2 {[%clk 0:00:03]} 27. Rb1 {[%clk 0:00:14]}  Qxb1 {[%clk 0:00:03]} 28. Qxb1 {[%clk 0:00:14]}  Rc1+ {[%clk 0:00:03]} 29. Qxc1 {[%clk 0:00:13]}  Bxc1 {[%clk 0:00:04]} 30. g3 {[%clk 0:00:11]}  g6 {[%clk 0:00:03]} 31. Nb3 {[%clk 0:00:10]}  Ba3 {[%clk 0:00:03]} 32. Nd2 {[%clk 0:00:08]}  Bb4 {[%clk 0:00:03]} 33. Nc4 {[%clk 0:00:08]}  b5 {[%clk 0:00:04]} 34. Ne5 {[%clk 0:00:07]}  Rc8 {[%clk 0:00:04]} 35. Nd7 {[%clk 0:00:05]}  Kg7 {[%clk 0:00:03]} 36. Re5 {[%clk 0:00:05]}  Rc1+ {[%clk 0:00:02]} 37. Kg2 {[%clk 0:00:05]}  Rd1 {[%clk 0:00:03]} 38. Nb6 {[%clk 0:00:04]}  Rd2 {[%clk 0:00:03]} 39. Rxb5 {[%clk 0:00:04]}  Rxa2 {[%clk 0:00:03]} 40. Nc4 {[%clk 0:00:04]}  Be1 {[%clk 0:00:02]} 0-1


[Site "https://www.chess.com"]

[Event "Titled Tuesday Blitz February 15 Early 2022"]
[White "Gulatz, Maurice"]
[Black "Vaishali, Rameshbabu"]
[WhiteFideId "24642746"]
[BlackFideId "5091756"]
[WhiteElo "2150"]
[BlackElo "2343"]
[Result "0-1"]
[Round "08"]
[TimeControl "180+1"]
[Date "2022.02.15"]
[WhiteClock "0:00:49"]
[BlackClock "0:00:56"]

1. d4 {[%clk 0:03:00]}  Nf6 {[%clk 0:02:58]} 2. c4 {[%clk 0:03:00]}  Nc6 {[%clk 0:02:57]} 3. Nf3 {[%clk 0:03:00]}  e6 {[%clk 0:02:56]} 4. a3 {[%clk 0:03:00]}  g6 {[%clk 0:02:46]} 5. Nc3 {[%clk 0:02:59]}  Bg7 {[%clk 0:02:46]} 6. g3 {[%clk 0:02:58]}  O-O {[%clk 0:02:46]} 7. Bg2 {[%clk 0:02:59]}  d6 {[%clk 0:02:46]} 8. O-O {[%clk 0:02:59]}  Re8 {[%clk 0:02:42]} 9. d5 {[%clk 0:02:43]}  exd5 {[%clk 0:02:42]} 10. cxd5 {[%clk 0:02:44]}  Ne5 {[%clk 0:02:42]} 11. Nd4 {[%clk 0:02:42]}  h5 {[%clk 0:02:39]} 12. h3 {[%clk 0:02:42]}  h4 {[%clk 0:02:38]} 13. g4 {[%clk 0:02:35]}  Nfxg4 {[%clk 0:02:28]} 14. hxg4 {[%clk 0:02:36]}  Bxg4 {[%clk 0:02:29]} 15. Ne4 {[%clk 0:02:18]}  h3 {[%clk 0:02:06]} 16. Bh1 {[%clk 0:02:13]}  Qh4 {[%clk 0:02:04]} 17. Kh2 {[%clk 0:02:09]}  Bxe2 {[%clk 0:01:22]} 18. Qxe2 {[%clk 0:01:31]}  Ng4+ {[%clk 0:01:21]} 19. Kg1 {[%clk 0:01:31]}  Bxd4 {[%clk 0:01:11]} 20. Bf3 {[%clk 0:01:22]}  Rxe4 {[%clk 0:00:55]} 21. Qxe4 {[%clk 0:01:14]}  Qg3+ {[%clk 0:00:55]} 22. Bg2 {[%clk 0:00:49]}  Qh2# {[%clk 0:00:56]} 0-1


[Site "https://www.chess.com"]